fUST/lending_fUST_20250806
["ID","MTS","AMOUNT","RATE_DAILY","PERIOD"]
[377471163,1754419857121,-166.0,0.0003568,14]
[377471164,1754419857131,-166.0,0.0003568,14]
[377471165,1754419857140,-166.0,0.0003568,14]
[377471166,1754419857149,-172.0,0.0003568,14]
[377471167,1754419857159,-172.0,0.0003568,14]
[377471168,1754419857169,-172.0,0.0003568,14]
[377471169,1754419857179,-174.25906298,0.0003568,14]
[377471170,1754419857187,-152.0,0.0003568,14]
[377471171,1754419857197,-1758.0,0.0003568,14]
[377471172,1754419857206,-152.0,0.0003568,14]
[377471173,1754419857215,-1758.0,0.0003568,14]
[377471174,1754419857223,-152.0,0.0003568,14]
[377471175,1754419857233,-1758.0,0.0003568,14]
[377471176,1754419857242,-152.0,0.0003568,14]
[377471177,1754419857252,-152.0,0.0003568,14]
[377471178,1754419857261,-1758.0,0.0003568,14]
[377471179,1754419857271,-152.0,0.0003568,14]
[377471180,1754419857279,-1758.0,0.0003568,14]
[377471181,1754419857289,-152.0,0.0003568,14]
[377471182,1754419857298,-152.0,0.0003568,14]
[377471183,1754419857307,-1758.0,0.0003568,14]
[377471184,1754419857316,-152.0,0.0003568,14]
[377471185,1754419857325,-1758.0,0.0003568,14]
[377471186,1754419857335,-152.0,0.0003568,14]
[377471187,1754419857344,-1758.0,0.0003568,14]
[377471188,1754419857353,-1758.0,0.0003568,14]
[377471189,1754419857362,-152.0,0.0003568,14]
[377471190,1754419857375,-1758.0,0.0003568,14]
[377471191,1754419857384,-1758.0,0.0003568,14]
[377471192,1754419857393,-152.0,0.0003568,14]
[377471193,1754419857402,-1758.0,0.0003568,14]
[377471194,1754419857413,-152.0,0.0003568,14]
[377471195,1754419857422,-1758.0,0.0003568,14]
[377471196,1754419857431,-1758.0,0.0003568,14]
[377471197,1754419857441,-152.0,0.0003568,14]
[377471198,1754419857452,-1758.0,0.0003568,14]
[377471199,1754419857462,-152.0,0.0003568,14]
[377471200,1754419857471,-1758.0,0.0003568,14]
[377471201,1754419857481,-152.0,0.0003568,14]
[377471202,1754419857490,-1758.0,0.0003568,14]
[377471203,1754419857530,-1758.0,0.0003568,14]
[377471204,1754419857539,-152.0,0.0003568,14]
[377471205,1754419857549,-1758.0,0.0003568,14]
[377471206,1754419857559,-152.0,0.0003568,14]
[377471207,1754419857568,-1758.0,0.0003568,14]
[377471208,1754419857577,-152.0,0.0003568,14]
[377471209,1754419857587,-152.0,0.0003568,14]
[377471210,1754419857596,-1758.0,0.0003568,14]
[377471211,1754419857605,-1758.0,0.0003568,14]
[377471212,1754419857614,-152.0,0.0003568,14]
[377471213,1754419857624,-1758.0,0.0003568,14]
[377471214,1754419857633,-152.0,0.0003568,14]
[377471215,1754419857643,-698.61649863,0.0003568,14]
[377471216,1754419857652,-152.0,0.0003568,14]
[377471217,1754419857661,-152.0,0.0003568,14]
[377471218,1754419857673,-152.0,0.0003568,14]
[377471219,1754419857682,-161.7998668,0.0003568,14]
[377471220,1754419857691,-325.0,0.0003568,14]
[377471221,1754419857779,-325.0,0.0003568,14]
[377471222,1754419857789,-3802.32,0.000357,7]
[377471223,1754419857798,-38968.32,0.000357,14]
[377471224,1754419857808,-1259.04,0.00035889,2]
[377471225,1754419857819,-460.0,0.00035889,2]
[377471226,1754419857829,-933.4,0.00035976,15]
[377471227,1754419857839,-201.28339804,0.00036,2]
[377471228,1754419857848,-19414.75,0.00036,14]
[377471229,1754419857858,-12500.0,0.00036026,10]
[377471230,1754419857868,-12500.0,0.00036035,10]
[377471231,1754419857878,-261.599195,0.00036113,2]
[377471232,1754419857887,-500.0,0.00036132,5]
[377471233,1754419857897,-1259.04,0.00036163,2]
[377471234,1754419857906,-460.0,0.00036163,2]
[377471235,1754419857916,-1871.09,0.00036164,120]
[377471236,1754419857925,-6000.0,0.000362,6]
[377471237,1754419857935,-202.58381615,0.0003621,2]
[377471238,1754419857944,-263.50408523,0.0003624,2]
[377471239,1754419857953,-1259.04,0.00036437,2]
[377471240,1754419857963,-460.0,0.00036437,2]
[377471241,1754419857972,-448.14946761,0.000365,120]
[377471242,1754419857982,-1259.04,0.00036711,2]
[377471243,1754419857991,-460.0,0.00036711,2]
[377471244,1754419858001,-1259.04,0.00036985,2]
[377471245,1754419858010,-460.0,0.00036985,2]
[377471246,1754419858019,-500.0,0.00036986,2]
[377471247,1754419858028,-500.0,0.00036986,2]
[377471248,1754419858038,-500.0,0.00036986,2]
[377471249,1754419858047,-500.0,0.00036986,2]
[377471250,1754419858056,-500.0,0.00036986,120]
[377471251,1754419858065,-151.0,0.00036986,2]
[377471252,1754419858075,-500.0,0.00036986,2]
[377471253,1754419858084,-500.0,0.00036986,2]
[377471254,1754419858094,-500.0,0.00036986,2]
[377471255,1754419858103,-500.0,0.00036986,2]
[377471256,1754419858113,-500.0,0.00036986,2]
[377471257,1754419858123,-151.0,0.00036986,2]
[377471258,1754419858132,-151.0,0.00036986,2]
[377471259,1754419858142,-151.0,0.00036986,2]
[377471260,1754419858151,-500.0,0.00036986,2]
[377471261,1754419858161,-500.0,0.00036986,2]
[377471262,1754419858171,-500.0,0.00036986,2]
[377471263,1754419858181,-500.0,0.00036986,2]
[377471264,1754419858191,-500.0,0.00036986,2]
[377471265,1754419858200,-151.0,0.00036986,2]
[377471266,1754419858209,-151.0,0.00036986,2]
[377471267,1754419858218,-500.0,0.00036986,2]
[377471268,1754419858227,-151.0,0.00036986,2]
[377471269,1754419858236,-151.0,0.00036986,2]
[377471270,1754419858246,-151.0,0.00036986,2]
[377471271,1754419858255,-500.0,0.00036986,2]
[377471272,1754419858264,-500.0,0.00036986,2]
[377471273,1754419858274,-267.06449588,0.00036986,2]
[377471274,1754419858283,-500.0,0.00036986,2]
[377471275,1754419858292,-151.94042205,0.00036986,2]
[377471276,1754419858301,-500.0,0.00036986,2]
[377471277,1754419858310,-500.0,0.00036986,2]
[377471278,1754419858320,-500.0,0.00036986,2]
[377471279,1754419858329,-151.0,0.00036986,2]
[377471280,1754419858338,-151.93048648,0.00036986,2]
[377471281,1754419858347,-268.50875535,0.00036986,2]
[377471282,1754419858357,-500.0,0.00036986,2]
[377471283,1754419858370,-151.0,0.00036986,2]
[377471284,1754419858380,-151.0,0.00036986,2]
[377471285,1754419858390,-720.0,0.00036986,2]
[377471286,1754419858399,-500.0,0.00036986,2]
[377471287,1754419858410,-151.0,0.00036986,2]
[377471288,1754419858419,-500.0,0.00036986,2]
[377471289,1754419858429,-500.0,0.00036986,2]
[377471290,1754419858439,-151.0,0.00036986,2]
[377471291,1754419858448,-500.0,0.00036986,2]
[377471292,1754419858457,-1871.09,0.00036986,120]
[377471293,1754419858466,-8000.0,0.00037,6]
[377471294,1754419858475,-151.0,0.00037,120]
[377471295,1754419858487,-12655.02535889,0.00037,10]
[377471296,1754419858496,-12655.02535889,0.00037,120]
[377471297,1754419858506,-312.16666667,0.00037,10]
[377471298,1754419858516,-312.16666667,0.00037,120]
[377471299,1754419858526,-842.25606042,0.00037,10]
[377471300,1754419858536,-842.25606042,0.00037,120]
[377471301,1754419858546,-160.0,0.00037,10]
[377471302,1754419858555,-160.0,0.00037,120]
[377471303,1754419858565,-160.0,0.00037,120]
[377471304,1754419858580,-461.15695721,0.00037,10]
[377471305,1754419858589,-160.0,0.00037,10]
[377471306,1754419858599,-231.72586818,0.00037,10]
[377471307,1754419858609,-430.7234783,0.00037095,30]
[377471308,1754419858618,-430.7234783,0.00037095,30]
[377471309,1754419858628,-430.7234783,0.00037095,30]
[377471310,1754419858638,-430.7234783,0.00037095,30]
[377471311,1754419858648,-430.7234783,0.00037095,30]
[377471312,1754419858657,-793.0540063,0.00037095,30]
[377471313,1754419858667,-430.7234783,0.00037095,30]
[377471314,1754419858677,-430.7234783,0.00037095,30]
[377471315,1754419858687,-430.7234783,0.00037095,30]
[377471316,1754419858696,-430.7234783,0.00037095,30]
[377471317,1754419858711,-430.7234783,0.00037095,30]
[377471318,1754419858721,-347.898564,0.00037131,2]
[377471319,1754419858731,-160.3162146,0.00037232,30]
[377471320,1754419858740,-400.9420535,0.00037232,30]
[377471321,1754419858750,-161.4346216,0.00037232,30]
[377471322,1754419858759,-156.7680326,0.00037232,30]
[377471323,1754419858769,-578.9513623,0.00037232,30]
[377471324,1754419858779,-292.9155566,0.00037232,30]
[377471325,1754419858788,-292.9155566,0.00037232,30]
[377471326,1754419858798,-578.9513623,0.00037232,30]
[377471327,1754419858807,-292.9155566,0.00037232,30]
[377471328,1754419858818,-153.0,0.00037232,30]
[377471329,1754419858827,-160.3162146,0.00037232,30]
[377471330,1754419858837,-578.9513623,0.00037232,30]
[377471331,1754419858846,-153.0,0.00037232,30]
[377471332,1754419858858,-578.9513623,0.00037232,30]
[377471333,1754419858867,-160.3162146,0.00037232,30]
[377471334,1754419858878,-292.9155566,0.00037232,30]
[377471335,1754419858887,-160.3162146,0.00037232,30]
[377471336,1754419858896,-292.9155566,0.00037232,30]
[377471337,1754419858907,-578.9513623,0.00037232,30]
[377471338,1754419858917,-153.0,0.00037232,30]
[377471339,1754419858927,-153.0,0.00037232,30]
[377471340,1754419858936,-160.3162146,0.00037232,30]
[377471341,1754419858946,-292.9155566,0.00037232,30]
[377471342,1754419858956,-578.9513623,0.00037232,30]
[377471343,1754419858967,-153.0,0.00037232,30]
[377471344,1754419858976,-292.9155566,0.00037232,30]
[377471345,1754419858986,-153.0,0.00037232,30]
[377471346,1754419858995,-160.3162146,0.00037232,30]
[377471347,1754419859005,-578.9513623,0.00037232,30]
[377471348,1754419859014,-422.4068622,0.00037232,30]
[377471349,1754419859024,-578.9513623,0.00037232,30]
[377471350,1754419859033,-292.9155566,0.00037232,30]
[377471351,1754419859043,-153.0,0.00037232,30]
[377471352,1754419859052,-578.9513623,0.00037232,30]
[377471353,1754419859061,-292.9155566,0.00037232,30]
[377471354,1754419859070,-160.3162146,0.00037232,30]
[377471355,1754419859080,-153.0,0.00037232,30]
[377471356,1754419859089,-292.9155566,0.00037232,30]
[377471357,1754419859099,-160.3162146,0.00037232,30]
[377471358,1754419859109,-578.9513623,0.00037232,30]
[377471359,1754419859118,-153.0,0.00037232,30]
[377471360,1754419859128,-292.9155566,0.00037232,30]
[377471361,1754419859138,-1157.9027246,0.00037232,30]
[377471362,1754419859148,-160.3162146,0.00037232,30]
[377471363,1754419859158,-153.0,0.00037232,30]
[377471364,1754419859167,-292.9155566,0.00037232,30]
[377471365,1754419859176,-578.9513623,0.00037232,30]
[377471366,1754419859186,-160.3162146,0.00037232,30]
[377471367,1754419859195,-153.0,0.00037232,30]
[377471368,1754419859205,-578.9513623,0.00037232,30]
[377471369,1754419859214,-160.3162146,0.00037232,30]
[377471370,1754419859223,-153.0,0.00037232,30]
[377471371,1754419859233,-292.9155566,0.00037232,30]
[377471372,1754419859242,-578.9513623,0.00037232,30]
[377471373,1754419859252,-292.9155566,0.00037232,30]
[377471374,1754419859262,-160.3162146,0.00037232,30]
[377471375,1754419859271,-292.9155566,0.00037232,30]
[377471376,1754419859281,-578.9513623,0.00037232,30]
[377471377,1754419859376,-153.0,0.00037232,30]
[377471378,1754419859386,-160.3162146,0.00037232,30]
[377471379,1754419859395,-153.0,0.00037232,30]
[377471380,1754419859405,-292.9155566,0.00037247,30]
[377471381,1754419859416,-1259.04,0.00037259,2]
[377471382,1754419859425,-460.0,0.00037259,2]
[377471383,1754419859435,-500.0,0.0003726,2]
[377471384,1754419859445,-500.0,0.0003726,2]
[377471385,1754419859455,-500.0,0.0003726,2]
[377471386,1754419859464,-500.0,0.0003726,2]
[377471387,1754419859474,-151.0,0.0003726,2]
[377471388,1754419859483,-500.0,0.0003726,2]
[377471389,1754419859493,-500.0,0.0003726,2]
[377471390,1754419859502,-576.54926726,0.0003726,2]
[377471391,1754419859511,-500.0,0.0003726,2]
[377471392,1754419859522,-500.0,0.0003726,2]
[377471393,1754419859532,-181.64750543,0.0003726,2]
[377471394,1754419859542,-152.28248666,0.0003726,2]
[377471395,1754419859552,-151.0,0.0003726,2]
[377471396,1754419859563,-500.0,0.0003726,2]
[377471397,1754419859573,-528.36839226,0.0003726,2]
[377471398,1754419859582,-500.0,0.0003726,2]
[377471399,1754419859591,-500.0,0.0003726,2]
[377471400,1754419859600,-500.0,0.0003726,2]
[377471401,1754419859608,-151.0,0.0003726,2]
[377471402,1754419859617,-151.0,0.0003726,2]
[377471403,1754419859628,-500.0,0.0003726,2]
[377471404,1754419859639,-158.66535787,0.0003726,2]
[377471405,1754419859648,-222.44273759,0.0003726,2]
[377471406,1754419859657,-152.06920036,0.0003726,2]
[377471407,1754419859667,-500.0,0.0003726,2]
[377471408,1754419859676,-500.0,0.0003726,2]
[377471409,1754419859685,-500.0,0.0003726,2]
[377471410,1754419859695,-500.0,0.0003726,2]
[377471411,1754419859704,-151.0,0.0003726,2]
[377471412,1754419859713,-500.0,0.0003726,2]
[377471413,1754419859722,-151.0,0.0003726,2]
[377471414,1754419859731,-720.0,0.0003726,2]
[377471415,1754419859740,-500.0,0.0003726,2]
[377471416,1754419859749,-500.0,0.0003726,2]
[377471417,1754419859758,-500.0,0.0003726,2]
[377471418,1754419859767,-200.0,0.00037301,15]
[377471419,1754419859776,-200.0,0.00037301,15]
[377471420,1754419859785,-200.0,0.00037301,15]
[377471421,1754419859794,-200.0,0.00037301,15]
[377471422,1754419859803,-200.0,0.00037301,15]
[377471423,1754419859812,-371.0,0.00037301,15]
[377471424,1754419859821,-500.0,0.00037309,2]
[377471425,1754419859830,-442.3664,0.000374,120]
[377471426,1754419859839,-200.0,0.00037478,120]
[377471427,1754419859848,-4000.0,0.00037482,6]
[377471428,1754419859857,-1458.65,0.000375,7]
[377471429,1754419859867,-1259.04,0.00037533,2]
[377471430,1754419859877,-460.0,0.00037533,2]
[377471431,1754419859886,-500.0,0.00037534,2]
[377471432,1754419859895,-256.79851188,0.00037534,2]
[377471433,1754419859904,-500.0,0.00037534,2]
[377471434,1754419859913,-500.0,0.00037534,2]
[377471435,1754419859922,-151.0,0.00037534,2]
[377471436,1754419859931,-500.0,0.00037534,2]
[377471437,1754419859940,-441.43568945,0.00037534,2]
[377471438,1754419859949,-500.0,0.00037534,2]
[377471439,1754419859958,-500.0,0.00037534,2]
[377471440,1754419859967,-151.0,0.00037534,2]
[377471441,1754419859976,-500.0,0.00037534,2]
[377471442,1754419859985,-388.86353489,0.00037534,2]
[377471443,1754419859994,-500.0,0.00037534,2]
[377471444,1754419860003,-361.0726996,0.00037534,2]
[377471445,1754419860012,-151.0,0.00037534,2]
[377471446,1754419860022,-151.0,0.00037534,2]
[377471447,1754419860031,-500.0,0.00037534,2]
[377471448,1754419860040,-500.0,0.00037534,2]
[377471449,1754419860049,-500.0,0.00037534,2]
[377471450,1754419860059,-500.0,0.00037534,2]
[377471451,1754419860069,-500.0,0.00037534,2]
[377471452,1754419860078,-173.00324891,0.00037534,2]
[377471453,1754419860087,-153.92469844,0.00037534,2]
[377471454,1754419860096,-500.0,0.00037534,2]
[377471455,1754419860105,-238.67168533,0.00037534,2]
[377471456,1754419860114,-720.0,0.00037534,2]
[377471457,1754419860123,-500.0,0.00037534,2]
[377471458,1754419860133,-500.0,0.00037534,2]
[377471459,1754419860142,-500.0,0.00037534,2]
[377471460,1754419860151,-200.0,0.0003762,120]
[377471461,1754419860159,-4000.0,0.00037668,6]
[377471462,1754419860168,-160.2170531,0.00037671,30]
[377471463,1754419860177,-292.9155566,0.00037671,30]
[377471464,1754419860187,-292.9155566,0.00037671,30]
[377471465,1754419860196,-292.9155566,0.00037671,30]
[377471466,1754419860206,-292.9155566,0.00037671,30]
[377471467,1754419860215,-292.9155566,0.00037671,30]
[377471468,1754419860225,-389.4857916,0.00037671,30]
[377471469,1754419860234,-201.66,0.00037726,30]
[377471470,1754419860243,-1009.7451009,0.000378,2]
[377471471,1754419860253,-1259.04,0.00037807,2]
[377471472,1754419860262,-460.0,0.00037807,2]
[377471473,1754419860271,-500.0,0.00037808,2]
[377471474,1754419860280,-169.67047392,0.00037808,2]
[377471475,1754419860289,-500.0,0.00037808,2]
[377471476,1754419860298,-151.0,0.00037808,2]
[377471477,1754419860307,-500.0,0.00037808,2]
[377471478,1754419860315,-367.35384149,0.00037808,2]
[377471479,1754419860325,-161.98181752,0.00037808,2]
[377471480,1754419860334,-151.0,0.00037808,2]
[377471481,1754419860344,-500.0,0.00037808,2]
[377471482,1754419860353,-500.0,0.00037808,2]
[377471483,1754419860362,-151.0,0.00037808,2]
[377471484,1754419860374,-151.0,0.00037808,2]
[377471485,1754419860385,-377.55124403,0.00037808,2]
[377471486,1754419860394,-500.0,0.00037808,2]
[377471487,1754419860405,-500.0,0.00037808,2]
[377471488,1754419860415,-500.0,0.00037808,2]
[377471489,1754419860424,-500.0,0.00037808,2]
[377471490,1754419860433,-500.0,0.00037808,2]
[377471491,1754419860443,-720.0,0.00037808,2]
[377471492,1754419860453,-500.0,0.00037808,2]
[377471493,1754419860465,-500.0,0.00037808,2]
[377471494,1754419860474,-500.0,0.00037808,2]
[377471495,1754419860484,-1871.09,0.00037808,120]
[377471496,1754419860493,-9000.0,0.00037826,6]
[377471497,1754419860502,-900.0,0.00037994,7]
[377471498,1754419860512,-20416.44467947,0.00038,2]
[377471499,1754419860521,-542.68438712,0.00038,45]
[377471500,1754419860530,-160.0,0.00038,7]
[377471501,1754419860539,-12655.02535889,0.00038,7]
[377471502,1754419860548,-12655.02535889,0.00038,30]
[377471503,1754419860557,-312.16666667,0.00038,30]
[377471504,1754419860567,-842.25606042,0.00038,7]
[377471505,1754419860576,-842.25606042,0.00038,30]
[377471506,1754419860586,-160.0,0.00038,7]
[377471507,1754419860596,-160.0,0.00038,30]
[377471508,1754419860605,-461.15695721,0.00038,7]
[377471509,1754419860614,-461.15695721,0.00038,30]
[377471510,1754419860624,-160.0,0.00038,7]
[377471511,1754419860634,-160.0,0.00038,30]
[377471512,1754419860642,-231.72586818,0.00038,7]
[377471513,1754419860652,-231.72586818,0.00038,30]
[377471514,1754419860662,-500.0,0.00038034,5]
[377471515,1754419860671,-153.0,0.00038054,30]
[377471516,1754419860681,-153.0,0.00038054,30]
[377471517,1754419860690,-153.0,0.00038054,30]
[377471518,1754419860700,-153.0,0.00038054,30]
[377471519,1754419860710,-153.0,0.00038054,30]
[377471520,1754419860719,-153.0,0.00038054,30]
[377471521,1754419860801,-153.0,0.00038054,30]
[377471522,1754419860811,-153.0,0.00038054,30]
[377471523,1754419860821,-153.0,0.00038054,30]
[377471524,1754419860830,-153.0,0.00038054,30]
[377471525,1754419860839,-153.0,0.00038054,30]
[377471526,1754419860849,-153.0,0.00038054,30]
[377471527,1754419860859,-153.0,0.00038054,30]
[377471528,1754419860868,-153.0,0.00038054,30]
[377471529,1754419860879,-442.3190873,0.00038054,30]
[377471530,1754419860889,-153.0,0.00038054,30]
[377471531,1754419860899,-153.0,0.00038054,30]
[377471532,1754419860908,-153.0,0.00038054,30]
[377471533,1754419860917,-153.0,0.00038054,30]
[377471534,1754419860927,-153.0,0.00038054,30]
[377471535,1754419860937,-292.9155566,0.00038054,30]
[377471536,1754419860947,-153.0,0.00038054,30]
[377471537,1754419860957,-153.0,0.00038054,30]
[377471538,1754419860966,-153.0,0.00038054,30]
[377471539,1754419860975,-153.0,0.00038054,30]
[377471540,1754419860985,-153.0,0.00038054,30]
[377471541,1754419860995,-153.0,0.00038054,30]
[377471542,1754419861005,-153.0,0.00038054,30]
[377471543,1754419861015,-900.0,0.00038057,7]
[377471544,1754419861024,-1100.0,0.00038075,7]
[377471545,1754419861034,-1259.04,0.00038081,2]
[377471546,1754419861043,-460.0,0.00038081,2]
[377471547,1754419861053,-259.14175866,0.00038082,2]
[377471548,1754419861063,-500.0,0.00038082,2]
[377471549,1754419861072,-263.80895745,0.00038082,2]
[377471550,1754419861082,-500.0,0.00038082,2]
[377471551,1754419861092,-153.5899979,0.00038082,2]
[377471552,1754419861101,-500.0,0.00038082,2]
[377471553,1754419861111,-500.0,0.00038082,2]
[377471554,1754419861120,-253.17024743,0.00038082,2]
[377471555,1754419861130,-281.83305816,0.00038082,2]
[377471556,1754419861139,-500.0,0.00038082,2]
[377471557,1754419861149,-500.0,0.00038082,2]
[377471558,1754419861158,-500.0,0.00038082,2]
[377471559,1754419861168,-193.14213031,0.00038082,2]
[377471560,1754419861177,-720.0,0.00038082,2]
[377471561,1754419861187,-500.0,0.00038082,2]
[377471562,1754419861196,-500.0,0.00038082,2]
[377471563,1754419861206,-500.0,0.00038082,2]
[377471564,1754419861216,-151.0,0.000381,120]
[377471565,1754419861225,-19414.75,0.000381,14]
[377471566,1754419861235,-3802.32,0.000382,7]
[377471567,1754419861245,-38968.32,0.000382,14]
[377471568,1754419861255,-1613.0,0.00038259,2]
[377471569,1754419861264,-933.4,0.00038348,15]
[377471570,1754419861274,-1259.04,0.00038355,2]
[377471571,1754419861284,-460.0,0.00038355,2]
[377471572,1754419861294,-500.0,0.00038356,2]
[377471573,1754419861304,-250.16967531,0.00038356,2]
[377471574,1754419861314,-500.0,0.00038356,2]
[377471575,1754419861323,-500.0,0.00038356,2]
[377471576,1754419861333,-500.0,0.00038356,2]
[377471577,1754419861342,-500.0,0.00038356,2]
[377471578,1754419861351,-500.0,0.00038356,2]
[377471579,1754419861362,-720.0,0.00038356,2]
[377471580,1754419861373,-500.0,0.00038356,2]
[377471581,1754419861385,-500.0,0.00038356,2]
[377471582,1754419861394,-237.75001353,0.00038356,2]
[377471583,1754419861404,-500.0,0.00038356,2]
[377471584,1754419861414,-500.0,0.00038356,120]
[377471585,1754419861424,-500.0,0.00038356,5]
[377471586,1754419861433,-200.0,0.00038366,120]
[377471587,1754419861449,-200.0,0.00038377,120]
[377471588,1754419861468,-201.66,0.0003841,31]
[377471589,1754419861484,-6000.0,0.00038412,6]
[377471590,1754419861500,-211.222188,0.00038437,2]
[377471591,1754419861518,-800.0,0.0003851,7]
[377471592,1754419861537,-7000.0,0.00038522,6]
[377471593,1754419861553,-1259.04,0.00038629,2]
[377471594,1754419861568,-460.0,0.00038629,2]
[377471595,1754419861585,-500.0,0.0003863,2]
[377471596,1754419861600,-500.0,0.0003863,2]
[377471597,1754419861613,-500.0,0.0003863,2]
[377471598,1754419861630,-500.0,0.0003863,2]
[377471599,1754419861649,-500.0,0.0003863,2]
[377471600,1754419861667,-500.0,0.0003863,2]
[377471601,1754419861678,-720.0,0.0003863,2]
[377471602,1754419861693,-469.73574217,0.0003863,2]
[377471603,1754419861711,-500.0,0.0003863,2]
[377471604,1754419861723,-1871.09,0.0003863,120]
[377471605,1754419861739,-971.0,0.00038678,2]
[377471606,1754419861751,-636.0,0.00038678,2]
[377471607,1754419861763,-2148.0,0.00038678,2]
[377471608,1754419861776,-500.0,0.00038682,7]
[377471609,1754419861789,-553.51065565,0.00038807,2]
[377471610,1754419861802,-500.0,0.00038826,7]
[377471611,1754419861815,-500.0,0.0003886,2]
[377471612,1754419861829,-900.0,0.00038901,7]
[377471613,1754419861842,-1259.04,0.00038903,2]
[377471614,1754419861855,-460.0,0.00038903,2]
[377471615,1754419861869,-500.0,0.00038904,2]
[377471616,1754419861885,-419.69908877,0.00038904,2]
[377471617,1754419861897,-500.0,0.00038904,2]
[377471618,1754419861911,-500.0,0.00038904,2]
[377471619,1754419861925,-595.7220488,0.00038904,2]
[377471620,1754419861938,-500.0,0.00038904,2]
[377471621,1754419861951,-720.0,0.00038904,2]
[377471622,1754419861965,-500.0,0.00038904,2]
[377471623,1754419861979,-1100.0,0.00038912,7]
[377471624,1754419861992,-1100.0,0.00038938,7]
[377471625,1754419862007,-253223.05276474,0.00039,60]
[377471626,1754419862021,-1100.0,0.00039045,7]
[377471627,1754419862035,-201.66,0.00039095,32]
[377471628,1754419862051,-1100.0,0.00039111,7]
[377471629,1754419862064,-900.0,0.0003913,7]
[377471630,1754419862079,-1259.04,0.00039177,2]
[377471631,1754419862092,-325.360458,0.00039177,2]
[377471632,1754419862105,-500.0,0.00039178,2]
[377471633,1754419862116,-165.83558711,0.00039178,2]
[377471634,1754419862127,-500.0,0.00039178,2]
[377471635,1754419862138,-500.0,0.00039178,2]
[377471636,1754419862147,-720.0,0.00039178,2]
[377471637,1754419862157,-500.0,0.00039178,2]
[377471638,1754419862167,-501.57456818,0.00039181,7]
[377471639,1754419862177,-1458.65,0.000392,7]
[377471640,1754419862186,-151.0,0.000393,120]
[377471641,1754419862195,-442.3664,0.000393,120]
[377471642,1754419862205,-500.0,0.00039323,7]
[377471643,1754419862214,-2200.0,0.00039447,14]
[377471644,1754419862224,-500.0,0.00039447,7]
[377471645,1754419862234,-1259.04,0.00039451,2]
[377471646,1754419862243,-500.0,0.00039452,2]
[377471647,1754419862252,-500.0,0.00039452,2]
[377471648,1754419862262,-720.0,0.00039452,2]
[377471649,1754419862272,-500.0,0.00039452,2]
[377471650,1754419862281,-1871.09,0.00039452,120]
[377471651,1754419862291,-500.0,0.00039455,7]
[377471652,1754419862301,-500.0,0.00039513,7]
[377471653,1754419862310,-200.0,0.0003959,120]
[377471654,1754419862502,-19414.75,0.000396,14]
[377471655,1754419862519,-153.0,0.00039615,30]
[377471656,1754419862530,-153.0,0.00039615,30]
[377471657,1754419862540,-153.0,0.00039615,30]
[377471658,1754419862549,-153.0,0.00039615,30]
[377471659,1754419862559,-153.0,0.00039615,30]
[377471660,1754419862568,-153.0,0.00039615,30]
[377471661,1754419862577,-153.0,0.00039615,30]
[377471662,1754419862586,-153.0,0.00039615,30]